{"text_format":"1","workbook":"xlsx","n_sheets":14,"sheets":["Einleitung ","Daten zum Auftrag","vereinfachte Gesamtkalkulat ","Code","Personalkosten","Tabelle4","Gerätenutzungskosten","Materialkosten","Fremdleistungskosten","sonstige direkt zurechenbare Ko","Tabelle1","Tabelle2","Gesamtkalkulation","Tabelle3"],"not_rendered":{"charts":0,"images":1,"macros":0,"external_links":1,"defined_names":17,"comments":2,"pivot_tables":0},"unopened":[],"bounds":{"document_bytes":16777216,"sheet_cells":100000,"rows_first":2000,"rows_last":500,"rows_between":2000,"halvings":0,"cell_chars":16384,"cell_head_chars":4096},"cells_cut":0,"cells_raw":0,"read":"whole","date_system":"1900"}

{"sheet":"Einleitung ","index":0,"n_rows":61,"n_cols":9,"rows_kept":61,"cut":false,"hidden":false,"merged":[[32,1,32,6],[33,6,37,6],[38,1,38,2],[48,1,48,4],[33,1,37,2],[33,3,37,3],[33,4,37,4],[33,5,37,5],[9,5,9,10],[5,5,5,10],[6,5,6,10],[4,5,4,10],[8,5,8,10],[7,5,7,10]]}
[]
[]
[]
[]
[]
[null,null,null,null,null,"Kalkulationsschema für Auftragsforschung und wissenschaftliche Dienstleistung"]
[null,null,null,null,null,"Stand: April 2025"]
[]
[null,null,null,null,null,"Bitte übermitteln Sie alle folgenden Blätter nur ausgedruckt mit Originalunterschrift!"]
[null,"Liebe Nutzerin, "]
[null,"lieber Nutzer,"]
[]
[null,"mit dieser Projektkalkulation werden die Vollkosten für ein Drittmittelprojekt berechnet. Diese Vorlage ist so aufgebaut, dass nur noch bestimmte Felder gefüllt werden müssen und am Ende eine komplette"]
[null,"Vollkostenrechnung entsteht. Bitte gehen Sie nach folgender Anleitung vor."]
[]
[null,"In den nachfolgenden Tabellenblättern:"]
[]
[null,"Personalkosten"]
[null,"Gerätenutzungskosten"]
[null,"Materialkosten"]
[null,"Fremdleistungskosten "]
[null,"sonstige direkt zurechenbare Kosten"]
[]
[null,"füllen Sie bitte nur die für Sie zutreffenden grün hinterlegten Felder aus."]
[null,"Alle anderen Felder sind gesperrt und können nicht bearbeitet werden."]
[null,"Im letzten Tabellenblatt"]
[null,"Gesamtkosten"]
[null,"werden automatisch die Vollkosten der Kalkulation errechnet."]
[]
[]
[null,"Auf jedem Tabellenblatt ist ein Beispieleintrag abgebildet, der Ihnen als Muster dienen kann. Hier exemplarisch das Beispiel aus dem Tabellenblatt Materialkosten:"]
[]
[null,"Beispiel"]
[null,"eingesetzes Material       z. B. Chemikalien",null,"Preis einer Einheit in Euro","Einheit","Menge","Gesamt- preis                 in Euro"]
[]
[]
[]
[]
[null,"Acetylsalicylsäure",null,1.5,"g",200,{"$f":"F39*D39","v":300}]
[]
[null,null,null,null,null,null,null,null,"Das Feld \"Gesamtpreis in Euro\" berechnet sich automatisch aus den Feldern \"Preis einer Einheit in Euro\" und "]
[null,null,null,null,null,null,null,null,"\"Menge\" sobald beide Felder gefüllt sind."]
[]
[null,null,null,null,null,null,null,null,"Bitte füllen Sie die grün hinterlegten Felder gemäß Ihrer Beschriftung und Ihrem Projektbedarf aus."]
[]
[null,"Alle anderen Felder bleiben entweder unverändert oder berechnen sich nach Eingabe aller wichtigen Felder von selbst. Gelb hinterlegte Felder sind Summenfelder."]
[]
[null,"Sollten Sie zu den einzelnen Tabellenblättern dennoch Fragen haben, befinden sich auf allen Tabellenblättern die jeweiligen Ansprechpartner mit Kontaktinformationen."]
[]
[null,"Da auf dem Tabellenblatt Gesamtkalkulation die Mehrwertsteuer hinzugerechnet wird, müssen alle eingetragenen Beträge Nettobeträge sein. Sollten Sie nur die Bruttobeträge zur Hand haben"]
[null,"können Sie den Nettobetrag nach folgender Formel berechnen:"]
[null,"Bruttobetrag","geteilt durch ",119,"mal",100,"ist gleich ","Nettobetrag"]
[null,119,"/",119,"*",100,"=",100,"Beispiel 1"]
[null,272.5,"/",119,"*",100,"=",{"$f":"B54/119*100","v":228.99159663865544},"Beispiel 2"]
[]
[]
[null,"Hinweis zu Zahlungsmodalitäten:"]
[]
[null,"Nach bayerischer Haushaltsordnung soll die Universität Bayreuth bei ihren wirtschaftlichen Projekten nicht in Vorleistung gehen."]
[null,"Daher sollen Zahlungen weitestgehends vor Beginn der Tätigkeit erfolgen."]
[null,"Nur in begründeten Einzelfällen ist ggfs. eine andere Regelung möglich."]

{"sheet":"Daten zum Auftrag","index":1,"n_rows":64,"n_cols":23,"rows_kept":64,"cut":false,"hidden":false,"merged":[[35,2,35,10],[29,0,29,6],[29,7,29,10],[7,0,7,4],[7,5,7,10],[13,0,14,3],[27,7,27,10],[27,0,27,6],[11,4,11,10],[48,1,48,5],[48,6,48,10],[45,8,45,10],[0,0,0,4],[1,0,1,9],[3,4,3,10],[5,4,5,7],[5,8,5,10],[9,4,9,10],[13,4,13,10],[14,4,14,10],[22,1,22,6],[24,1,24,6],[22,7,22,10],[24,7,24,10],[31,0,31,10]]}
["Grau markierte Felder sind vom Antragsteller auszufüllen!"]
["Daten zum Auftrag / zur Kalkulation - Auftragsforschung",null,null,null,null,null,null,null,null,null,null,null,null,null,null,null,null,null,null,null,null,null,"Partner EU (ohne USt)"]
[null,null,null,null,null,null,null,null,null,null,null,null,null,null,null,null,null,null,null,null,null,null,"Partner Hochschule Bayern (ohne Ust)"]
["Beauftragender Partner: ",null,null,null,null,null,null,null,null,null,null,null,null,null,null,null,null,null,null,null,null,null,"Partner Drittland (ohne Ust)"]
[null,null,null,null,"(Unternehmen / Firma): Bitte vollständige Anschrift angeben!",null,null,null,null,null,null,null,null,null,null,null,null,null,null,null,null,null,"Partner Inland (mit USt) 19% "]
["PARTNERLAND / USt",null,null,null,"Partner Inland (mit USt) 19% ",null,null,null,"Å Bitte auswählen!",null,null,null,null,null,null,null,null,null,null,null,null,null,"Partner EU (mit USt) 19%"]
[null,null,null,null,null,null,null,null,null,null,null,null,null,null,null,null,null,null,null,null,null,null,"Partner Drittland (mit USt) 19% "]
["Unternehmer-Nr.:/USt- Ident-Nr.:",null,null,null,null,null,null,null,null,null,null,null,null,null,null,null,null,null,null,null,null,null,"Innenleistung Lehrstuhl/Einrichtung"]
[null,null,null,null,"(Nur bei Partnern aus EU oder Drittland)"]
["Lehrstuhl/Einrichtung"]
[]
["Ansprechpartner/in Lehrstuhl:",null,null,null,null,null,null,null,null,null,null,null,null,null,null,null,null,null,null,null,null,null,"Partner Drittland (ohne Ust)"]
[]
["Projektbezeichnung"]
[]
[null,null,null,null,"(genaue Bezeichnung des Auftrags)"]
["Anlagen immer mit einzureichen: ",null,null,null,"*",null,"Erklärung zur steuerlichen Behandlung"]
[null,null,null,null,"*",null,"Drittmittelanzeige"]
[null,null,null,null,"*",null,"Erklärung zum Forschungs- / Drittmittelvorhaben"]
[]
["I.","Angaben des ausführenden Lehrstuhls/Einrichtung zum Projekt"]
[]
[null,"Kalkulation zum Angebot/Vertrag vom:"]
[]
[null,"Kalkulation zur Direktbeauftragung vom:"]
[]
[]
["Angabe der Kostenstelle für Materialpauschale:"]
[]
["Angabe der Restmittelkostenstelle:"]
[]
["Hier nur ankreuzen wenn Projektarbeiten zum Zeitpunkt der Einreichung der Kalkulationsunterlagen bereits beendet waren (nur bei Direktbeauftragung von Kleinprojekten über Sammelkostenstellen möglich):"]
[null,"Die Arbeiten sind vollständig ausgeführt. Die Rechnung kann gestellt werden."]
[null,"Die in der Kalkulation angegebenen Stunden für Stammpersonal und Gerätenutzung sind wie kalkuliert angefallen"]
[null,"Der Partner hat für die Direktbeauftragung die AGB der Universität Bayreuth akzeptiert. (Nachweis am Lehrstuhl vorhalten)"]
[null,"Bayreuth, den"]
[null,null,null,null,"Unterschrift  Projektverantwortliche/r",null,null,null,"         Name in Druckbuchstaben"]
["II.","An das Referat II 1.1.5 (vom Referat auszufüllen)"]
[]
[null,"II.1  Haushaltsrechtliche Prüfung"]
[null,"mit der Bitte um rechnerische Prüfung des Auftrages / Angebotes hinsichtlich der"]
[]
[null,"Kalkulation (Vollkosten)      ->evtl. ÄNDERUNGEN SIEHE BEIBLATT"]
[]
[null,"Festlegung des \"Overhead-Anteils\" für allgemeine Kosten (z. B. Arbeitsplatz- und Gemeinkosten,"]
[null,"Personalaufwand in Infrastruktureinrichtungen der Universität etc.):"]
[null,{"$f":"IF(E6=\"Innenleistung Lehrstuhl/Einrichtung\",0%,20%)","v":0.2},"des Rechnungsbetrages"]
[]
[null,"Projektkostenstelle: ",null,null,null,null,"VM-Nummer:"]
[]
[]
[null,"II.2 Steuerrechtliche Prüfung"]
[]
[null,"Es besteht   UMSATZSTEUERPFLICHT",null,null,null,null,"          Ja",null,"          Nein"]
[null,"zu berücksichtigender Steuersatz:",null,null,null,null,0.19,"_____"]
[]
[null,"Bei EU-Partnern, Ident.-Nr.:    angegeben:",null,null,"ja                    ",null,"geprüft und ok:",null,"ja"]
[]
[null,"Bei Partnern außerhalb der EU, Unternehmer-Nr.      ",null,null,null,null,"angegeben:",null,"ja"]
[]
[null,"Die Einordnung in BgA (AF/WD) erfolgt nach Angabe des Lehrstuhls gem. steuerlicher Bescheinigung"]
[]
[null,"Bayreuth, den"]
[null,null,null,null,null,null,null,null,null,"    (Unterschrift Sachbearbeiter/in)"]

{"sheet":"vereinfachte Gesamtkalkulat ","index":2,"n_rows":124,"n_cols":26,"rows_kept":124,"cut":false,"hidden":false,"merged":[[0,0,0,2],[6,1,6,3],[57,0,57,1],[55,2,56,2],[52,0,52,2],[61,5,64,8],[54,5,57,8],[3,1,3,3],[4,1,4,3],[5,1,5,3]]}
["Kalkulation von Auftragsforschungen"]
["nur für Kleinprojekte bis 10.000 € Netto-Angebotspreis",null,null,null,null,null,null,null,null,null,null,null,null,null,null,null,null,"A3",null,null,null,null,null,null,0]
[null,null,null,null,null,null,null,null,null,null,null,null,null,null,null,null,null,"A4",null,null,null,null,null,null,0]
["Auftraggeber / Firma",null,null,null,null,null,null,null,null,null,null,null,null,null,null,null,null,"A5",null,null,null,null,null,null,"Partner EU (ohne USt)"]
["Ansprechpartner",null,null,null,null,null,null,null,null,null,null,null,null,null,null,null,null,"A6",null,null,null,null,null,null,"Partner Hochschule Bayern (ohne Ust)"]
["Thema",null,null,null,null,null,null,null,null,null,null,null,null,null,null,null,null,"A6+Z",null,null,null,null,null,null,"Partner Drittland (ohne Ust)"]
["Mitarbeiter",null,null,null,null,null,null,null,null,null,null,null,null,null,null,null,null,"A7",null,null,null,null,null,null,"Partner Inland (mit USt) 16%",0.16]
[null,null,null,null,null,"ERLÄUTERUNGEN:",null,null,null,null,null,null,null,null,null,null,null,"A8",null,null,null,null,null,null,"Partner EU (mit USt) 16%",0.16]
["Einsatz von Stammpersonal","Dauer","Preis","Kosten","873/874",null,null,null,null,null,null,null,null,null,null,null,null,"A9",null,null,null,null,null,null,"Partner Drittland (mit USt) 16%",0.16]
[null,null,{"$f":"IF(ISERROR(VLOOKUP(A10,Code!$A$8:$F$59,6,0)),\"\",VLOOKUP(A10,Code!$A$8:$F$59,6,0))","v":""},{"$f":"IF(ISERROR(C10*B10),\"\",C10*B10)","v":""},null,"Arbeitsplatzkosten und Grundausstattung",null,null,null,null,null,null,null,null,null,null,null,"A9+Z ",null,null,null,null,null,null,"Partner Inland (mit USt) 19% ",0.19]
[null,null,{"$f":"IF(ISERROR(VLOOKUP(A11,Code!$A$8:$F$59,6,0)),\"\",VLOOKUP(A11,Code!$A$8:$F$59,6,0))","v":""},{"$f":"IF(ISERROR(C11*B11),\"\",C11*B11)","v":""},null,null,null,null,null,null,null,null,null,null,null,null,null,"A10",null,null,null,null,null,null,"Partner EU (mit Ust) 19%",0.19]
[null,null,{"$f":"IF(ISERROR(VLOOKUP(A12,Code!$A$8:$F$59,6,0)),\"\",VLOOKUP(A12,Code!$A$8:$F$59,6,0))","v":""},{"$f":"IF(ISERROR(C12*B12),\"\",C12*B12)","v":""},null,null,null,null,null,null,null,null,null,null,null,null,null,"A10+Z",null,null,null,null,null,null,"Partner Drittland (mit USt) 19% ",0.19]
[null,null,{"$f":"IF(ISERROR(VLOOKUP(A13,Code!$A$8:$F$59,6,0)),\"\",VLOOKUP(A13,Code!$A$8:$F$59,6,0))","v":""},{"$f":"IF(ISERROR(C13*B13),\"\",C13*B13)","v":""},null,null,null,null,null,null,null,null,null,null,null,null,null,"A11",null,null,null,null,null,null,"Innenleistung Lehrstuhl/Einrichtung",0]
["Summe",null,null,{"$f":"SUM(D10:D13)","v":0},null,null,null,null,null,null,null,null,null,null,null,null,null,"A12"]
[null,null,null,null,null,null,null,null,null,null,null,null,null,null,null,null,null,"A13"]
["Personal Einstellungen (direkt auf Projekt)","Dauer","Preis","Kosten","812/822",null,null,null,null,null,null,null,null,null,null,null,null,"A13+Z"]
[null,null,{"$f":"IF(ISERROR(VLOOKUP(A17,Code!$A$8:$F$59,6,0)),\"\",VLOOKUP(A17,Code!$A$8:$F$59,6,0))","v":""},{"$f":"IF(ISERROR(C17*B17),\"\",C17*B17)","v":""},null,null,null,null,null,null,null,null,null,null,null,null,null,"A14"]
[null,null,{"$f":"IF(ISERROR(VLOOKUP(A18,Code!$A$8:$F$59,6,0)),\"\",VLOOKUP(A18,Code!$A$8:$F$59,6,0))","v":""},{"$f":"IF(ISERROR(C18*B18),\"\",C18*B18)","v":""},null,null,null,null,null,null,null,null,null,null,null,null,null,"A15"]
[null,null,{"$f":"IF(ISERROR(VLOOKUP(A19,Code!$A$8:$F$59,6,0)),\"\",VLOOKUP(A19,Code!$A$8:$F$59,6,0))","v":""},{"$f":"IF(ISERROR(C19*B19),\"\",C19*B19)","v":""},null,null,null,null,null,null,null,null,null,null,null,null,null,"A16"]
["Summe",null,null,{"$f":"SUM(D17:D19)","v":0},null,null,null,null,null,null,null,null,null,null,null,null,null,"A16+Z"]
[null,null,null,null,null,null,null,null,null,null,null,null,null,null,null,null,null,"A13 Akad.Rat"]
["Einsatz von Geräten","Dauer","Preis","Kosten",950,null,null,null,null,null,null,null,null,null,null,null,null,"W1"]
[null,null,null,{"$f":"C23*B23","v":0},null,"Großgeräte und Sondermaschinen müssen einzeln kalkuliert",null,null,null,null,null,null,null,null,null,null,null,"W2"]
[null,null,null,0,null,"werden",null,null,null,null,null,null,null,null,null,null,null,"W3"]
[null,null,null,0,null,null,null,null,null,null,null,null,null,null,null,null,null,"C1 kw"]
[null,null,null,0,null,null,null,null,null,null,null,null,null,null,null,null,null,"C2 kw"]
[null,null,null,0,null,null,null,null,null,null,null,null,null,null,null,null,null,"C3 kw"]
[null,null,null,0,null,null,null,null,null,null,null,null,null,null,null,null,null,"C4 kw"]
["Summe",null,null,{"$f":"SUM(D23:D28)","v":0},null,null,null,null,null,null,null,null,null,{"$f":"L29*M29","v":0},null,null,null,"E1"]
[null,null,null,null,null,null,null,null,null,null,null,null,null,null,null,null,null,"E2"]
["Einsatz von Material","Menge","Preis","Kosten","943/944",null,null,null,null,null,null,null,null,null,null,null,null,"E2Ü"]
[null,null,null,{"$f":"C32*B32","v":0},null,"Material ist grundsätzlich einzeln zu bewerten, wenn Erfahrungs- ",null,null,null,null,null,null,null,null,null,null,null,"E3"]
[null,null,null,0,null,"werte vorliegen kann auch eine \"Materialpauschale\" ",null,null,null,null,null,null,null,null,null,null,null,"E4"]
[null,null,null,0,null,"bis maximal 350,00 EUR zum Ansatz kommen",null,null,null,null,null,null,null,null,null,null,null,"E5"]
[null,null,null,0,null,null,null,null,null,null,null,null,null,null,null,null,null,"E6"]
[null,null,null,0,null,null,null,null,null,null,null,null,null,null,null,null,null,"E7"]
[null,null,null,0,null,null,null,null,null,null,null,null,null,null,null,null,null,"E8"]
[null,null,null,0,null,null,null,null,null,null,null,null,null,null,null,null,null,"E9"]
["Summe",null,null,{"$f":"SUM(D32:D38)","v":0},null,null,null,null,null,null,null,null,null,null,null,null,null,"E10"]
[null,null,null,null,null,null,null,null,null,null,null,null,null,null,null,null,null,"E11"]
["Fremdleistungen","Menge","Preis","Kosten",933,null,null,null,null,null,null,null,null,null,null,null,null,"E12"]
[null,null,null,{"$f":"C42*B42","v":0},null,null,null,null,null,null,null,null,null,null,null,null,null,"E13"]
[null,null,null,{"$f":"C43*B43","v":0},null,null,null,null,null,null,null,null,null,null,null,null,null,"E13Ü"]
["Summe",null,null,{"$f":"SUM(D42:D43)","v":0},null,null,null,null,null,null,null,null,null,null,null,null,null,"E14"]
[null,null,null,null,null,null,null,null,null,null,null,null,null,null,null,null,null,"E15"]
["Sonstiges","Menge","Preis","Kosten",945,null,null,null,null,null,null,null,null,null,null,null,null,"E15Ü"]
[null,null,null,{"$f":"C47*B47","v":0},null,null,null,null,null,null,null,null,null,null,null,null,null,"SHK student. Hilfskräfte"]
[null,null,null,{"$f":"C48*B48","v":0},null,"Sonstige dem Auftrag direkt zurechenbare Kosten:",null,null,null,null,null,null,null,null,null,null,null,"nwHK student. Hilfskräfte"]
["Summe",null,null,{"$f":"SUM(D47:D48)","v":0},null,"Forschungs- und Lehrzulage, Reisekosten, Raummiete etc.",null,null,null,null,null,null,null,null,null,null,null,"SHKBachelor student. Hilfskräfte"]
[]
["å Zwischensumme",null,null,{"$f":"D14+D20+D29+D39+D44+D49","v":0}]
[]
["Kalkulation von Auftragsforschungen"]
["nur für Kleinprojekte bis 10.000 € Netto-Angebotspreis"]
[null,null,null,null,null,"Bitte Eintrag mit \"Ja\" bestätigen und generell Preissteigerungen kalkulieren.  "]
[null,null,"hier \"Ja\" eintragen"]
["å Zwischensumme",null,null,{"$f":"D14+D20+D29+D39+D44+D49","v":0},960]
["Preissteigerungen während der Laufzeit\ninklusive Tariferhöhungen, bitte mit Eintrag \"Ja\" bestätigen",null,null,{"$f":"IF(C58=\"Ja\",D57*0.05,0)","v":0}]
[]
["å Selbstkosten ",null,null,{"$f":"D58+D57","v":0}]
[]
["Gewinn in Prozent",null,null,{"$f":"D60*C62","v":0},960,"                                                                                   Empfohlener Gewinn 3 % - 5 %                                                  Gewinne über 10 % müssen begründet werden"]
["Nettoüberschuss vorweg verfügbar",0.2,{"$f":"D62*B63","v":0}]
["Gewinn in EURO (alternativ)",null,null,{"$f":"C64","v":0},955]
["Nettoüberschuss vorweg verfügbar",0.2,{"$f":"C64*B65","v":0}]
[]
["Nettosumme vor Overhead",null,null,{"$f":"D62+D60+D64","v":0}]
["Overhead","im Hundert",{"$f":"'Daten zum Auftrag'!B47","v":0.2},{"$f":"(D67/(1-C68))*C68","v":0},999]
[]
["Gesamt-Nettosumme",null,null,{"$f":"D67+D68","v":0}]
[]
[{"$f":"'Daten zum Auftrag'!E6","v":"Partner Inland (mit USt) 19% "},{"$f":"VLOOKUP(A72,$Y$4:$Z$13,2,FALSE)","v":0.19},{"$f":"B72","v":0.19},{"$f":"D70*C72","v":0}]
[]
["Brutto-Angebotspreis des Auftrags",null,null,{"$f":"D70+D72","v":0}]
[]
[]
[]
[]
[]
[]
[]
["Auf Dienstpflicht wird bestätigt:"]
[]
["Mir ist bekannt, dass nach dem EU-Gemeinschaftsrahmen für staatliche Beihilfen für Forschung,"]
["Entwicklung und Innovation (Beihilferahmen) zur Vermeidung von Wettbewerbsverzerrungen eine "]
["Trennung von wirtschaftlichen und nichtwirtschaftlichen Tätigkeiten erforderlich ist und insoweit eine "]
["Quersubventionierung von wirtschaftlicher Tätigkeit aus staatlichen Haushaltsmitteln unzulässig ist."]
[]
["Mir ist bekannt, dass nach bayerischer Haushaltsdordnung, die Universität Bayreuth nicht in"]
["Vorleistung gehen soll."]
["Daher sollen Zahlungen weitestgehends vor Beginn der Tätigkeit erfolgen. "]
["Nur in begründeten Einzelfällen ist ggfs. eine andere Regelung möglich"]
[]
["Das obige Projekt / die obige Kalkulation trägt dem Rechnung und wurde deshalb im Zuge der"]
["Angebotserstellung nach einer Vollkostenkalkulation bzw. nach marktüblichen Preisen kalkuliert."]
[]
["Ferner wird sichergestellt, dass alle Ausgaben für das Projekt nachweisbar / spezifizierbar sind. "]
["Entsprechende Aufzeichnungen werden geführt und für eine evtl. Prüfung durch die EU nach den "]
["einschlägigen Aufbewahrungsbestimmungen aufbewahrt."]
[]
[]
["________________________________",null,"___________________________________"]
["Datum,  Unterschrift des Projektleiters",null,"Datum, Unterschrift des Lehrstuhlinhabers"]
[null,null,"(falls nicht gleichzeitig Projektleiter)"]
[]
[]
[]
[]
[]
[null,null,null,null,null,null,null," "]
[]
[]
[]
[]
[]
[]
[]
[]
[]
[]
[]
[]
[]
[","]

{"sheet":"Code","index":3,"n_rows":59,"n_cols":6,"rows_kept":59,"cut":false,"hidden":true,"merged":[[0,0,0,5],[2,0,2,5],[3,0,3,1],[3,2,3,3],[4,0,6,0],[4,2,6,2],[1,0,1,5],[3,4,3,5],[4,1,6,1],[4,5,6,5],[4,3,6,3],[4,4,6,4],[55,0,55,2],[45,0,45,1],[45,2,45,3],[26,2,26,3],[55,4,55,5],[26,0,26,1],[48,2,49,2],[45,4,45,5],[26,4,26,5]]}
["A. Auftragsspezifische Personalkosten"]
["Personalvollkosten ab 1. Dezember 2022"]
["Nur grün hinterlegte Felder ausfüllen !"]
["Beamte",null,"Angestellte",null,"Personalvollkosten_Beamte/Angestellte"]
["BesGr","Stufe","Entgelt-gruppe ","Entgeltgruppe (Übergeleiteter Bestand)","Jahr (in Euro)","Stunde (in Euro)"]
[]
[]
["A3","8*","E2, E2Ü, E1","E2Ü",73359,44.73]
["A4","8*",null,null,76080,46.4]
["A5","Endstufe","E3","E3",76740,46.8]
["A6",null,"E5, E4",null,77613,47.32]
["A6+Z","Endstufe",null,null,80709,49.22]
["A7",7,"E7, E6","E7, E6",81088,49.44]
["A8","Endstufe","E8","E8",88155,53.76]
["A9",null,"E9","E9",91031,55.24]
["A9+Z ","Endstufe",null,null,101400,61.53]
["A10",6,"E10","E10",97265,59.02]
["A10+Z","Endstufe",null,null,103812,63]
["A11",7,"E11","E11",109049,66.17]
["A12","Endstufe","E12","E12",123293,74.819999999999993]
["A13",null,"E13, E13Ü","E13",129904,76.959999999999994]
["A13+Z","Endstufe",null,null,142730,84.55]
["A14",7,"E14","E14, E13Ü",142058,84.16]
["A15",8,"E15",null,158734,94.04]
["A16","Endstufe","E15Ü",null,180834,107.13]
["A16+Z","Endstufe",null,null,186267,110.34]
["Angestellte",null,"Angestellte",null,"Angestellte"]
["E1","8*",null,null,70407,42.93]
["E2",null,null,null,70407,42.93]
["E2Ü",null,null,null,70407,42.93]
["E3","Endstufe",null,null,73876,45.05]
["E4",null,null,null,74664,45.53]
["E5",null,null,null,74664,45.53]
["E6",null,null,null,78152,47.66]
["E7",7,null,null,78152,47.66]
["E8","Endstufe",null,null,85291,52.01]
["E9",null,null,null,88247,53.55]
["E10",5,null,null,94654,57.43]
["E11",7,null,null,106699,64.739999999999995]
["E12","Endstufe",null,null,120945,73.39]
["E13",null,null,null,127302,75.41]
["E13Ü",null,null,null,127302,75.41]
["E14",7,null,null,140093,82.99]
["E15",8,null,null,156149,92.51]
["E15Ü","Endstufe",null,null,178249,105.6]
["Beamte",null,"Beamte",null,"Beamte"]
["A13 Akad.Rat","Akad. Rat a. Z./Stufe 6",null,null,121293,71.849999999999994]
["W1",null,null,null,121182,71.790000000000006]
["W2",2,"ohne Leistungs-\nbezüge",null,152701,90.47]
["W3",2,null,null,177315,105.04]
[]
["C1 kw",13,null,null,136110,80.64]
["C2 kw","Endstufe",null,null,160835,95.28]
["C3 kw","Endstufe",null,null,177595,105.21]
["C4 kw","Endstufe",null,null,247950,146.88999999999999]
["Studentische Hilfskräfte",null,null,null,"Studentische Hilfskräfte"]
["SHK student. Hilfskräfte",null,null,null,null,22.39]
["nwHK student. Hilfskräfte",null,null,null,null,22.39]
["SHKBachelor student. Hilfskräfte",null,null,null,null,24.08]

{"sheet":"Personalkosten","index":4,"n_rows":60,"n_cols":22,"rows_kept":60,"cut":false,"hidden":false,"merged":[[49,0,50,0],[42,16,42,18],[46,11,47,11],[28,8,28,12],[7,15,7,17],[46,0,47,0],[46,10,47,10],[9,15,9,17],[8,15,8,17],[27,8,27,12],[27,0,27,7],[28,0,28,7],[43,16,43,18],[41,0,41,2],[12,15,12,18],[46,9,47,9],[49,2,50,8],[46,2,47,8],[49,9,50,9],[46,13,47,13],[49,13,50,13],[46,12,47,12],[49,10,50,10],[4,6,6,6],[3,2,3,3],[4,12,6,12],[0,0,0,9],[1,0,1,9],[4,8,6,8],[3,9,6,9],[4,3,6,3],[3,11,6,11],[2,0,2,13],[4,0,6,0],[3,4,3,5],[13,15,32,18],[44,16,44,18],[53,0,53,2],[3,13,6,13],[4,2,6,2],[3,0,3,1],[3,15,5,17],[49,11,50,11],[49,12,50,12],[3,6,3,7],[33,2,34,3],[4,1,6,1],[4,10,6,10],[4,7,6,7],[4,4,6,4],[4,5,6,5]]}
["A. Auftragsspezifische Personalkosten"]
["Personalvollkosten ab Dezember 2022",null,null,null,null,null,null,null,null,null,null,null,null,null,null,"ANMERKUNGEN:"]
["Nur grün hinterlegte Felder ausfüllen !"]
["Beamte",null,"Angestellte",null,"Personaldurchschnittskosten",null,"Personalvollkosten",null,"Std.","Beamte Stammpersonal = vorhandenes Lehrstuhlpersonal, das über eine Haushaltsstelle finanziert wird","Std.","Angestellte Stammpersonal = vorhandenes Lehrstuhlpersonal, das über eine Haushaltsstelle finanziert wird","Std.","Direkteinstellungen= Personal, welches eigens für die Durchführung des Vorhabens auf das Projekt eingestellt wird",null,"Die Arbeitsplatzkosten und die Grundausstattung sind bei den Personalvollkosten mit eingerechnet."]
["BesGr","Stufe","Entgelt-gruppe ","Entgelt-gruppe (Über-geleiteter Bestand)","Jahr (in Euro)","Stunde (in Euro)","Jahr                      (in Euro)","Stunde                   (in Euro)"]
[]
[]
["A3","Endstufe","E2, E2Ü, E1","E2Ü",null,null,{"$f":"Code!$E8","v":73359},{"$f":"VLOOKUP(A8,Code!$A$5:$F$26,6,0)","v":44.73},null,{"$f":"H8*I8","v":0},null,{"$f":"K8*H8","v":0},null,{"$f":"H8*M8","v":0},null,"Stunden pro Jahr",null,null,1720]
["A4","Endstufe",null,null,null,null,{"$f":"Code!$E9","v":76080},{"$f":"VLOOKUP(A9,Code!$A$5:$F$26,6,0)","v":46.4},null,{"$f":"H9*I9","v":0},null,{"$f":"K9*H9","v":0},null,{"$f":"H9*M9","v":0},null,"Stunden pro Monat",null,null,{"$f":"S8/12","v":143.33333333333334}]
["A5","Endstufe","E3","E3",null,null,{"$f":"Code!$E10","v":76740},{"$f":"VLOOKUP(A10,Code!$A$5:$F$26,6,0)","v":46.8},null,{"$f":"H10*I10","v":0},null,0,null,0,null,"Stunden pro Tag",null,null,{"$f":"S9/19","v":7.5438596491228074}]
["A6",null,"E5, E4",null,null,null,{"$f":"Code!$E11","v":77613},{"$f":"VLOOKUP(A11,Code!$A$5:$F$26,6,0)","v":47.32},null,0,null,{"$f":"K11*H11","v":0},null,0]
["A6+Z","Endstufe",null,null,null,null,{"$f":"Code!$E12","v":80709},{"$f":"VLOOKUP(A12,Code!$A$5:$F$26,6,0)","v":49.22},null,0,null,0,null,0]
["A7",8,"E7, E6","E7, E6",null,null,{"$f":"Code!$E13","v":81088},{"$f":"VLOOKUP(A13,Code!$A$5:$F$26,6,0)","v":49.44},null,0,null,0,null,0,null,"Forschungs- und Lehrzulage"]
["A8","Endstufe","E8","E8",null,null,{"$f":"Code!$E14","v":88155},{"$f":"VLOOKUP(A14,Code!$A$5:$F$26,6,0)","v":53.76},null,0,null,0,null,{"$f":"H14*M14","v":0},null,"Professoren und Professorinnen, die im Hauptamt Mittel privater Dritter für Forschungs- und Lehrvorhaben der Hochschule einwerben und diese Vorhaben durchführen, kann für die Dauer des Drittmittelflusses aus diesen Mitteln eine nicht ruhegeltfähige Zulage gewährt werden, soweit der Drittmittelgeber mit der Vergabe einverstanden ist. Eine Zulage darf nur gewährt werden, soweit neben den übrigen Kosten des Forschungs- und Lehrvorhabens auch die für die Gewährung der Forschungs- und Lehrzulage aufzuwendenden Beträge durch die Drittmittel gedeckt sind. Forschungs- und Lehrzulagen dürfen innerhalb eines Kalenderjahres insgesamt 100 v. H. des Jahresgrundgehalts des Professors oder der Professorin nicht überschreiten. Die Lehrtätigkeit im Rahmen eines Lehrvorhabens, für das eine Lehrzulage gewährt wird, ist auf die jeweils obliegende Lehrverpflichtung nicht anzurechnen.                           Anm.: Die BayHLeistBV ist nur auf Professoren in der W-Besoldung anwendbar."]
["A9",null,"E9","E9",null,null,{"$f":"Code!$E15","v":91031},{"$f":"VLOOKUP(A15,Code!$A$5:$F$26,6,0)","v":55.24},null,0,null,0,null,0]
["A9+Z ","Endstufe",null,null,null,null,{"$f":"Code!$E16","v":101400},{"$f":"VLOOKUP(A16,Code!$A$5:$F$26,6,0)","v":61.53},null,0,null,0,null,0]
["A10",6,"E10","E10",null,null,{"$f":"Code!$E17","v":97265},{"$f":"VLOOKUP(A17,Code!$A$5:$F$26,6,0)","v":59.02},null,0,null,0,null,0]
["A10+Z","Endstufe",null,null,null,null,{"$f":"Code!$E18","v":103812},{"$f":"VLOOKUP(A18,Code!$A$5:$F$26,6,0)","v":63},null,0,null,0,null,0]
["A11",8,"E11","E11",null,null,{"$f":"Code!$E19","v":109049},{"$f":"VLOOKUP(A19,Code!$A$5:$F$26,6,0)","v":66.17},null,{"$f":"H19*I19","v":0},null,0,null,0]
["A12","Endstufe","E12","E12",null,null,{"$f":"Code!$E20","v":123293},{"$f":"VLOOKUP(A20,Code!$A$5:$F$26,6,0)","v":74.819999999999993},null,0,null,0,null,0]
["A13",null,"E13, E13Ü","E13",null,null,{"$f":"Code!$E21","v":129904},{"$f":"VLOOKUP(A21,Code!$A$5:$F$26,6,0)","v":76.959999999999994},null,0,null,0,null,0]
["A13+Z","Endstufe",null,null,null,null,{"$f":"Code!$E22","v":142730},{"$f":"VLOOKUP(A22,Code!$A$5:$F$26,6,0)","v":84.55},null,0,null,0,null,0]
["A14",7,"E14","E14, E13Ü",null,null,{"$f":"Code!$E23","v":142058},{"$f":"VLOOKUP(A23,Code!$A$5:$F$26,6,0)","v":84.16},null,0,null,0,null,0]
["A15",8,"E15",null,null,null,{"$f":"Code!$E24","v":158734},{"$f":"VLOOKUP(A24,Code!$A$5:$F$26,6,0)","v":94.04},null,0,null,0,null,0]
["A16","Endstufe","E15Ü",null,null,null,{"$f":"Code!$E25","v":180834},{"$f":"VLOOKUP(A25,Code!$A$5:$F$26,6,0)","v":107.13},null,0,null,0,null,0]
["A16+Z","Endstufe",null,null,null,null,{"$f":"Code!$E26","v":186267},{"$f":"VLOOKUP(A26,Code!$A$5:$F$26,6,0)","v":110.34},null,0,null,0,null,0]
[]
["Sonderfall:  Kalkulierte Personalkosten ",null,null,null,null,null,null,null,"Betrag in Personalabteilung zu erfragen und zu bestätigen"]
["zuzüglich 30% arbeitsplatzbezogene Gemeinkosten",null,null,null,null,null,null,null,null,null,null,null,null,{"$f":"N28*0.3","v":0}]
[]
[]
["A13","Akad. Rat a. Z./Stufe 6",null,null,null,null,{"$f":"Code!E47","v":121293},{"$f":"Code!F47","v":71.849999999999994},null,{"$f":"H32*I32","v":0},null,null,null,{"$f":"H32*M32","v":0}]
["W1",null,null,null,null,null,{"$f":"Code!E48","v":121182},{"$f":"Code!F48","v":71.790000000000006},null,{"$f":"H33*I33","v":0},null,null,null,{"$f":"H33*M33","v":0}]
["W2",2,"ohne Leistungs-\nbezüge",null,null,null,{"$f":"Code!E49","v":152701},{"$f":"Code!F49","v":90.47},null,{"$f":"H34*I34","v":0},null,null,null,{"$f":"H34*M34","v":0}]
["W3",2,null,null,null,null,{"$f":"Code!E50","v":177315},{"$f":"Code!F50","v":105.04},null,{"$f":"H35*I35","v":0},null,null,null,{"$f":"H35*M35","v":0}]
[]
["C1 kw",13,null,null,null,null,{"$f":"Code!E52","v":136110},{"$f":"Code!F52","v":80.64},null,0,null,null,null,0]
["C2 kw","Endstufe",null,null,null,null,{"$f":"Code!E53","v":160835},{"$f":"Code!F53","v":95.28},null,0,null,null,null,0]
["C3 kw","Endstufe",null,null,null,null,{"$f":"Code!E54","v":177595},{"$f":"Code!F54","v":105.21},null,0,null,null,null,0]
["C4 kw","Endstufe",null,null,null,null,{"$f":"Code!E55","v":247950},{"$f":"Code!F55","v":146.88999999999999},null,0,null,null,null,0]
[]
["Studentische Hilfskräfte"]
["SHK student. Hilfskräfte",null,null,null,null,null,null,{"$f":"Code!F57","v":22.39},null,null,null,{"$f":"K43*H43","v":0},null,{"$f":"M43*H43","v":0},null,"SHK","studentische Hilfskraft"]
["nwHK student. Hilfskräfte",null,null,null,null,null,null,{"$f":"Code!F58","v":22.39},null,null,null,{"$f":"K44*H44","v":0},null,{"$f":"M44*H44","v":0},null,"nwHK","nicht wissenschaftliche Hilfskraft"]
["SHKBachelor student. Hilfskräfte",null,null,null,null,null,null,{"$f":"Code!F59","v":24.08},null,null,null,{"$f":"K45*H45","v":0},null,{"$f":"M45*H45","v":0},null,"SHKBachelor","studentische Hilfskraft Bachelor"]
[null,null,null,null,null,null,null,null,null,null,null,null,null,null,null,"Die Stundenangaben bei der Gruppe studentische ",null,null,null,"Beispiel:"]
[null,null,null,null,null,null,null,null,null,null,null,null,null,null,null,"Hilfskräfte sind nicht mit der oben genannten Zahl ",null,null,null,"Stunden pro Monat",null,39.5]
[null,null,null,null,null,null,null,null,null,null,null,null,null,null,null,"identisch. Bitte geben Sie bei den studentischen",null,null,null,"Stunden pro Jahr (=39,5x12)",null,{"$f":"V47*12","v":474}]
[null,null,null,null,null,null,null,null,null,"Stammpers.Beamte",null,"Stammpers. Angest.",null,"Direkteinstellungen",null,"Hilfskräften die genaue Stundenzahl ein, z. B. 39,5",null,null,null,"Stunden pro Woche (=39,5/4)",null,{"$f":"V47/4","v":9.875}]
["Gesamt",null,"in Euro",null,null,null,null,null,null,{"$f":"SUM(J8:J45)","v":0},null,{"$f":"SUM(L8:L45)","v":0},null,{"$f":"SUM(N8:N45)","v":0},null,"Stunden für die Monatsarbeitszeit. Für die Jahres-"]
[null,null,null,null,null,null,null,null,null,null,null,null,null,null,null,"arbeitszeit dies mal 12, für Wochen geteilt durch 4."]
[]
[]
["Forschungs- und Lehrzulage",null,null,null,null,null,null,null,null,null,null,null,null,null,null,"Bitte alle Tabellenblätter ausfüllen:"]
[null,null,null,null,null,null,null,null,null,null,null,null,null,null,null,"Personalkosten"]
[null,null,null,null,null,null,null,null,null,null,null,null,null,null,null,"Gerätenutzungskosten"]
[null,null,null,null,null,null,null,null,null,null,null,null,null,null,null,"Materialkosten"]
[null,null,null,null,null,null,null,null,null,null,null,null,null,null,null,"Fremdleistungskosten"]
[null,null,null,null,null,null,null,null,null,null,null,null,null,null,null,"sonstige direkt zurechenbare Kosten"]
[null,null,null,null,null,null,null,null,null,null,null,null,null,null,null,"Gesamtkosten"]

{"sheet":"Tabelle4","index":5,"n_rows":0,"n_cols":0,"rows_kept":0,"cut":false,"hidden":true,"merged":[]}

{"sheet":"Gerätenutzungskosten","index":6,"n_rows":35,"n_cols":13,"rows_kept":35,"cut":false,"hidden":false,"merged":[[26,10,26,13],[21,10,21,13],[1,10,2,14],[13,10,19,13],[5,10,5,13],[8,10,10,13],[7,12,7,13],[1,0,1,8],[22,10,25,13],[2,5,2,6],[16,5,16,6],[24,5,25,7],[10,5,10,6],[11,5,11,6],[12,5,12,6],[17,5,17,6],[18,5,18,6],[13,5,13,6],[3,8,5,8],[3,5,5,6],[3,7,5,7],[14,5,14,6],[19,5,19,6],[20,5,20,6],[21,5,21,6],[15,5,15,6],[23,5,23,6],[22,5,22,6],[21,0,21,3],[17,0,17,3],[7,0,7,3],[8,0,8,3],[9,0,9,3],[14,0,14,3],[10,0,10,3],[18,0,18,3],[19,0,19,3],[20,0,20,3],[15,0,15,3],[16,0,16,3],[0,0,0,8],[2,0,2,3],[24,8,25,8],[6,5,6,6],[7,5,7,6],[8,5,8,6],[9,5,9,6],[24,0,25,3],[23,0,23,3],[22,0,22,3],[3,0,5,3],[3,4,5,4],[6,0,6,3],[11,0,11,3],[12,0,12,3],[13,0,13,3]]}
["Gerätenutzungskosten",null,null,null,null,null,null,null,null,null,"ANMERKUNGEN:"]
["Nur grün hinterlegte Felder ausfüllen !",null,null,null,null,null,null,null,null,null,"Die (Netto-)Vollkosten pro Stunde sind bei Herrn Grunert anzufragen."]
["Maschinen",null,null,null,null,"Vollkosten ",null,"Stunden","Anlagekosten"]
[null,null,null,null,"Inventar- nummer","pro Stunde in Euro",null,null,"in Euro       (netto)"]
[]
[null,null,null,null,null,null,null,null,null,null,"Beispiel"]
["Maschine 1",null,null,null,null,0,null,null,{"$f":"H7*F7","v":0},null,"Vollkosten","Stunden","Anlagenkosten (in Euro)"]
["Maschine 2",null,null,null,null,0,null,null,0,null,25,40.1,{"$f":"L8*K8","v":1002.5}]
["Maschine 3",null,null,null,null,0,null,null,0,null,"Die Zahl 40,1 bedeutet z. B. eine Wochenbetriebszeit von 40,06 Stunden, wenn Sie für eine Tätigkeit 90 Minuten brauchen, tragen Sie bei Stunden bitte 1,5 ein."]
["Maschine 4",null,null,null,null,0,null,null,0]
["Maschine 5",null,null,null,null,0,null,null,0]
["Maschine 6",null,null,null,null,0,null,null,0]
["Maschine 7",null,null,null,null,0,null,null,0]
["Maschine 8",null,null,null,null,0,null,null,0,null,"In den Gerätenutzungskosten sind bereits mit eingerechnet:                                         Abschreibung, kalkulatorische Zinsen, tatsächliche Reparaturkosten, Raumkosten nach beanspruchter Fläche, Betriebsstoffe (Gas, Helium, Stickstoffe, Öl, etc.), Verbrauchsmaterial, Wartungs- und Gemeinkosten"]
["Maschine 9",null,null,null,null,0,null,null,0]
["Maschine 10",null,null,null,null,0,null,null,0]
["Maschine 11",null,null,null,null,0,null,null,0]
["Maschine 12",null,null,null,null,0,null,null,0]
["Maschine 13",null,null,null,null,0,null,null,0]
["Maschine 14",null,null,null,null,0,null,null,0]
["Maschine 15",null,null,null,null,0,null,null,0]
["Maschine 16",null,null,null,null,0,null,null,0]
["Maschine 17",null,null,null,null,0,null,null,0,null,"Rückfragen zu diesem Tabellenblatt bitte beim Referat Finanzcontrolling: ZUV\nTel.: 0921 / 55-5348 Fax: 0921 / 55 84 5348, E-Mail: finanzcontrolling@uni-bayreuth.de\n"]
["Maschine 18",null,null,null,null,0,null,null,0]
["Gerätenutzungskosten Gesamt",null,null,null,null,"in Euro",null,null,{"$f":"SUM(I7:I24)","v":0}]
[]
[]
[]
[null,null,null,null,null,null,null,null,null,null,"Bitte alle Tabellenblätter ausfüllen:"]
[null,null,null,null,null,null,null,null,null,null,"Personalkosten"]
[null,null,null,null,null,null,null,null,null,null,"Gerätenutzungskosten"]
[null,null,null,null,null,null,null,null,null,null,"Materialkosten"]
[null,null,null,null,null,null,null,null,null,null,"Fremdleistungskosten"]
[null,null,null,null,null,null,null,null,null,null,"sonstige direkt zurechenbare Kosten"]
[null,null,null,null,null,null,null,null,null,null,"Gesamtkosten"]

{"sheet":"Materialkosten","index":7,"n_rows":31,"n_cols":14,"rows_kept":31,"cut":false,"hidden":false,"merged":[[6,8,6,13],[7,0,7,2],[0,0,0,6],[2,5,6,5],[2,6,6,6],[2,0,6,0],[2,3,6,3],[1,0,1,6],[2,4,6,4],[2,1,6,2],[7,13,11,13],[8,0,8,2],[11,0,11,2],[12,0,12,2],[9,0,9,2],[10,0,10,2],[25,0,25,2],[26,0,26,2],[27,0,28,3],[27,4,28,5],[13,0,13,2],[14,0,14,2],[15,0,15,2],[16,0,16,2],[17,0,17,2],[30,0,31,3],[30,4,31,5],[30,6,31,6],[7,11,11,11],[7,12,11,12],[12,8,12,9],[7,8,11,9],[7,10,11,10],[20,0,20,2],[18,0,18,2],[19,0,19,2],[21,0,21,2],[22,0,22,2],[27,6,28,6],[23,0,23,2],[24,0,24,2]]}
["Materialkosten",null,null,null,null,null,null,null,"ANMERKUNGEN:"]
["Nur grün hinterlegte Felder ausfüllen !"]
["eingesetztes Material","Verbrauchsmaterial, Chemikalien, etc.",null,"Preis einer Einheit          in Euro (netto)","Einheit,         z. B. kg, l, etc.","Menge","Gesamt- preis           in Euro (netto)",null,"Material ist einzeln zu kalkulieren, kann aber auch pauschal"]
[null,null,null,null,null,null,null,null,"angesetzt werden z.B. \"Chemikalien insgesamt\""]
[]
[]
[null,null,null,null,null,null,null,null,"Beispiel"]
["Material 1",null,null,0,null,null,{"$f":"D8*F8","v":0},null,"eingesetzes Material       z. B. Chemikalien",null,"Preis einer Einheit in Euro","Einheit","Menge","Gesamt- preis                 in Euro"]
["Material 2",null,null,0,null,null,0]
["Material 3",null,null,0,null,null,0]
["Material 4",null,null,0,null,null,0]
["Material 5",null,null,0,null,null,0]
["Material 6",null,null,0,null,null,0,null,"Chemikalien",null,7.5,"kg",200,{"$f":"M13*K13","v":1500}]
["Material 7",null,null,0,null,null,0]
["Material 8",null,null,0,null,null,0]
["Material 9",null,null,0,null,null,0,null,"l","Liter"]
["Material 10",null,null,0,null,null,0,null,"kg","Kilogramm"]
["Material 11",null,null,0,null,null,0,null,"g","Gramm"]
["Material 12",null,null,0,null,null,0]
["Material 13",null,null,0,null,null,0]
["Material 14",null,null,0,null,null,0,null,"Bitte alle Tabellenblätter ausfüllen:"]
["Material 15",null,null,0,null,null,0,null,"Personalkosten"]
["Material 16",null,null,0,null,null,0,null,"Gerätenutzungskosten"]
["Material 17",null,null,0,null,null,0,null,"Materialkosten"]
["Material 18",null,null,0,null,null,0,null,"Fremdleistungskosten"]
["Material 19",null,null,0,null,null,0,null,"sonstige direkt zurechenbare Kosten"]
["Material 20",null,null,0,null,null,0,null,"Gesamtkosten"]
["Materialkosten Gesamt",null,null,null,"in Euro",null,{"$f":"SUM(G8:G27)","v":0}]
[]
[]
["Pauschale Kleinmaterial (bis 350,00 EUR)",null,null,null,"in Euro",null,0]

{"sheet":"Fremdleistungskosten","index":8,"n_rows":28,"n_cols":13,"rows_kept":28,"cut":false,"hidden":false,"merged":[[0,0,0,6],[7,0,7,2],[8,0,8,2],[2,0,6,0],[2,1,6,2],[1,0,1,6],[27,6,28,6],[2,3,6,3],[2,4,6,4],[2,5,6,5],[2,6,6,6],[27,0,28,3],[27,4,28,5],[9,0,9,2],[10,0,10,2],[11,0,11,2],[24,0,24,2],[26,0,26,2],[19,0,19,2],[20,0,20,2],[21,0,21,2],[22,0,22,2],[7,12,11,12],[12,8,12,9],[7,10,11,10],[23,0,23,2],[17,0,17,2],[18,0,18,2],[12,0,12,2],[13,0,13,2],[14,0,14,2],[7,11,11,11],[7,8,11,9],[15,0,15,2],[16,0,16,2]]}
["Fremdleistungen",null,null,null,null,null,null,null,"ANMERKUNGEN:"]
["Nur grün hinterlegte Felder ausfüllen !"]
["Fremdleistung ","Vergabe von Aufträgen an Universitätsfremde, z. B. Gutachten, TÜV, Messungen, etc.",null,"Preis einer Einheit        in Euro (netto)","Einheit,       z. B. Std.","Menge","Gesamtpreis                   in Euro (netto)",null,"Weitere Fremdleistungen sind"]
[null,null,null,null,null,null,null,null,"z. B. Reparaturen, Wartungsarbeiten, etc."]
[]
[]
[null,null,null,null,null,null,null,null,"Beispiel"]
["Fremdleistung 1",null,null,0,null,null,{"$f":"F8*D8","v":0},null,"Fremdleistung ",null,"Preis einer Einheit          in Euro","Menge","Gesamt- preis          in Euro"]
["Fremdleistung 2",null,null,0,null,null,0]
["Fremdleistung 3",null,null,0,null,null,0]
["Fremdleistung 4",null,null,0,null,null,0]
["Fremdleistung 5",null,null,0,null,null,0]
["Fremdleistung 6",null,null,0,null,null,0,null,"TÜV-Gutachten",null,100,2,{"$f":"L13*K13","v":200}]
["Fremdleistung 7",null,null,0,null,null,0]
["Fremdleistung 8",null,null,0,null,null,0]
["Fremdleistung 9",null,null,0,null,null,0,null,"Bitte alle Tabellenblätter ausfüllen:"]
["Fremdleistung 10",null,null,0,null,null,0,null,"Personalkosten"]
["Fremdleistung 11",null,null,0,null,null,0,null,"Gerätenutzungskosten"]
["Fremdleistung 12",null,null,0,null,null,0,null,"Materialkosten"]
["Fremdleistung 13",null,null,0,null,null,0,null,"Fremdleistungskosten"]
["Fremdleistung 14",null,null,0,null,null,0,null,"sonstige direkt zurechenbare Kosten"]
["Fremdleistung 15",null,null,0,null,null,0,null,"Gesamtkosten"]
["Fremdleistung 16",null,null,0,null,null,0]
["Fremdleistung 17",null,null,0,null,null,0]
["Fremdleistung 18",null,null,0,null,null,0]
["Fremdleistung 19",null,null,0,null,null,0]
["Fremdleistung 20",null,null,0,null,null,0]
["Fremdleistungen Gesamt",null,null,null,"in Euro",null,{"$f":"SUM(G8:G27)","v":0}]

{"sheet":"sonstige direkt zurechenbare Ko","index":9,"n_rows":42,"n_cols":13,"rows_kept":42,"cut":false,"hidden":false,"merged":[[8,0,8,4],[10,10,11,10],[10,11,11,11],[11,0,11,4],[2,7,2,12],[3,7,4,11],[5,7,5,11],[3,12,4,12],[10,12,11,12],[2,0,3,4],[2,5,3,5],[4,0,4,4],[5,0,5,4],[10,7,11,9],[6,0,6,4],[41,0,42,4],[41,5,42,5],[16,0,16,4],[17,0,17,4],[18,0,18,4],[37,0,38,2],[37,3,38,4],[19,0,20,4],[25,0,25,5],[29,3,30,3],[19,5,20,5],[29,4,30,4],[29,0,30,2],[12,7,12,9],[15,7,20,10],[12,0,12,4],[13,0,13,4],[14,0,14,4],[0,0,0,5],[37,5,38,5],[29,5,30,5],[33,0,33,2],[34,0,34,2],[35,0,35,2],[36,0,36,2],[31,0,31,2],[32,0,32,2],[15,0,15,4],[26,0,28,1],[22,0,22,4],[7,0,7,4],[9,0,9,4],[10,0,10,4],[1,0,1,5]]}
["sonstige direkt zurechenbare Kosten",null,null,null,null,null,null,"ANMERKUNGEN:"]
["Nur grün hinterlegte Felder ausfüllen !"]
["sonstige dem Auftrag zurechenbare Kosten",null,null,null,null,"Betrag in Euro (netto)",null,"Beispiele"]
[null,null,null,null,null,null,null,"sonstige dem Auftrag zurechenbare Kosten                                                 (z. B. Reisekosten, Lizenzkosten, Interne Leistungsverrechnung etc.)",null,null,null,null,"Betrag in Euro (netto)"]
["sonstige dem Auftrag direkt zurechenbaren Kosten 1",null,null,null,null,0]
["sonstige dem Auftrag direkt zurechenbaren Kosten 2",null,null,null,null,0,null,"Reisekosten",null,null,null,null,150]
["sonstige dem Auftrag direkt zurechenbaren Kosten 3",null,null,null,null,0]
["sonstige dem Auftrag direkt zurechenbaren Kosten 4",null,null,null,null,0]
["sonstige dem Auftrag direkt zurechenbaren Kosten 5",null,null,null,null,0]
["sonstige dem Auftrag direkt zurechenbaren Kosten 6",null,null,null,null,0,null,"zusätzlich nur für dieses Projekt gebuchte Räume"]
["sonstige dem Auftrag direkt zurechenbaren Kosten 7",null,null,null,null,0,null,"Raum                                                                   z. B. Konferenzräume, Hörsaale, Abstellräume, usw.",null,null,"Fläche in qm","Preis pro qm in Euro (netto)","Gesamtkosten in Euro"]
["sonstige dem Auftrag direkt zurechenbaren Kosten 8",null,null,null,null,0]
["sonstige dem Auftrag direkt zurechenbaren Kosten 9",null,null,null,null,0,null,"Lagerhalle",null,null,85,4,{"$f":"L13*K13","v":340}]
["sonstige dem Auftrag direkt zurechenbaren Kosten 10",null,null,null,null,0]
["sonstige dem Auftrag direkt zurechenbaren Kosten 11",null,null,null,null,0]
["sonstige dem Auftrag direkt zurechenbaren Kosten 12",null,null,null,null,0,null,"Rückfragen zu sonstigen Raumkosten bitte bei Referat II/1.1.3\nLiegenschaftsverwaltung, An- und Vermietungen,                                                                                                                                                                                                       Bau-, Raum- und Hausbewirtschaftungsangelegenheiten, Fernmelde- und Postwesen melden: Referat II 1.1.3 Haushaltsvollzug. E-Mail: Haushaltsvollzug@uni-bayreuth.de\n"]
["sonstige dem Auftrag direkt zurechenbaren Kosten 13",null,null,null,null,0]
["sonstige dem Auftrag direkt zurechenbaren Kosten 14",null,null,null,null,0]
["sonstige dem Auftrag direkt zurechenbaren Kosten 15",null,null,null,null,0]
["sonstige dem Auftrag direkt zurechenbaren Kosten ",null,null,null,null,{"$f":"SUM(F5:F19)","v":0}]
[]
[]
["Reisekosten",null,null,null,null,0]
[]
[]
["Nur grün hinterlegte Felder ausfüllen !"]
["sonstige Raumkosten",null,"Nur Räume die zusätzlich gebraucht werden. Bei den"]
[null,null,"Personal- und Maschinenkosten sind die jeweils "]
[null,null,"belegten Räume schon mit eingerechnet."]
["Raum",null,null,"Fläche in qm","Preis pro qm in Euro (netto)","Gesamtkosten in Euro"]
[]
["Raum 1",null,null,null,0,{"$f":"D32*E32","v":0},null,"Bitte alle Tabellenblätter ausfüllen:"]
["Raum 2",null,null,null,0,0,null,"Personalkosten"]
["Raum 3",null,null,null,0,0,null,"Gerätenutzungskosten"]
["Raum 4",null,null,null,0,0,null,"Materialkosten"]
["Raum 5",null,null,null,0,0,null,"Fremdleistungskosten"]
["Raum 6",null,null,null,0,0,null,"sonstige direkt zurechenbare Kosten"]
["sonstige Raumkosten Gesamt",null,null,"in Euro",null,{"$f":"SUM(F32:F37)","v":0},null,"Gesamtkosten"]
[]
[]
[]
["sonstige dem Auftrag zurechenbaren Kosten                    inklusive sonstige Raumkosten",null,null,null,null,{"$f":"F20+F38","v":0}]

{"sheet":"Tabelle1","index":10,"n_rows":0,"n_cols":0,"rows_kept":0,"cut":false,"hidden":true,"merged":[]}

{"sheet":"Tabelle2","index":11,"n_rows":0,"n_cols":0,"rows_kept":0,"cut":false,"hidden":true,"merged":[]}

{"sheet":"Gesamtkalkulation","index":12,"n_rows":81,"n_cols":14,"rows_kept":81,"cut":false,"hidden":false,"merged":[[34,9,35,9],[38,9,39,9],[32,10,35,13],[16,9,17,9],[18,9,19,9],[20,9,21,9],[26,9,27,9],[32,9,33,9],[8,9,9,9],[3,9,4,9],[10,9,11,9],[12,9,13,9],[14,9,15,9],[41,0,42,4],[65,5,65,8],[63,1,63,3],[63,5,63,8],[41,5,42,6],[41,7,42,8],[44,0,45,4],[44,5,45,6],[44,7,45,8],[36,0,36,4],[36,7,36,8],[38,0,38,4],[38,7,38,8],[40,0,40,4],[40,7,40,8],[30,0,31,4],[30,5,31,6],[30,7,31,8],[34,5,34,6],[34,7,35,8],[35,0,35,2],[35,3,35,4],[35,5,35,6],[32,0,32,4],[32,5,32,6],[32,7,33,8],[33,0,33,2],[33,3,33,4],[33,5,33,6],[20,0,21,4],[20,5,21,6],[20,7,21,8],[26,10,29,13],[28,5,28,6],[28,7,28,8],[23,0,24,4],[23,5,24,6],[23,7,24,8],[26,0,27,4],[26,7,27,8],[26,5,26,6],[27,5,27,6],[18,0,19,4],[18,5,19,6],[18,7,19,8],[14,0,15,4],[14,5,15,6],[14,7,15,8],[16,0,17,4],[16,5,17,6],[16,7,17,8],[0,0,0,8],[1,0,1,8],[2,0,2,8],[0,10,1,12],[0,13,1,13],[12,0,13,4],[12,5,13,6],[12,7,13,8],[8,0,9,4],[8,5,9,6],[8,7,9,8],[10,0,11,4],[10,5,11,6],[10,7,11,8],[3,10,3,13],[5,0,5,4],[5,5,5,6],[5,7,5,8],[6,0,7,4],[6,5,7,6],[6,7,7,8],[3,0,4,4],[3,5,4,6],[3,7,4,8],[6,9,7,9]]}
["Gesamtkalkulation - Auftragsforschung",null,null,null,null,null,null,null,null,null,"Sachkosten Gesamt",null,null,{"$f":"H11+H13+H15+H17+H21","v":0}]
["in Euro",null,null,null,null,null,null,null,null,"AA"]
["Nur grün hinterlegte Felder ausfüllen !                                                                                                       ",null,null,null,null,null,null,null,null,null,"Nur zur Information aufgeführt, bestehend aus:"]
["Personalkosten Stammpersonal LS /Beamte",null,null,null,null,"in Euro",null,{"$f":"Personalkosten!J50","v":0},null,873,"- Gerätenutzungskosten Gesamt"]
[null,null,null,null,null,null,null,null,null,873,"- Materialkosten Gesamt"]
["PersonalkostenStammpersonal LS /Angestellte/HiWi",null,null,null,null,"in Euro",null,{"$f":"Personalkosten!L50","v":0},null,874,"- Fremdleistungskosten Gesamt"]
["Personalkosten Einstellung (direkt auf Projekt) Gesamt (Wissenschaftler/Angestellte/HiWi)",null,null,null,null,"in Euro",null,{"$f":"Personalkosten!N50","v":0},null,"812/822","- sonstigen direkt zurechenbaren Kosten Gesamt"]
[]
["Forschungs- und Lehrzulage  ",null,null,null,null,"in Euro",null,{"$f":"Personalkosten!J54","v":0},null,830]
[]
["Gerätenutzungskosten Gesamt",null,null,null,null,"in Euro",null,{"$f":"Gerätenutzungskosten!I25","v":0},null,950]
[]
["direkte Materialkosten Gesamt",null,null,null,null,"in Euro",null,{"$f":"Materialkosten!G28","v":0},null,943]
[]
["Pauschale für Kleinmaterial (bis 350,00 EUR)",null,null,null,null,"in Euro",null,{"$f":"Materialkosten!G31","v":0},null,944]
[]
["Fremdleistungskosten Gesamt ",null,null,null,null,"in Euro",null,{"$f":"Fremdleistungskosten!G28","v":0},null,933]
[]
["Reisekosten",null,null,null,null,"in Euro",null,{"$f":"'sonstige direkt zurechenbare Ko'!F23","v":0},null,846]
[]
["sonstige zurechenbare Kosten Gesamt ",null,null,null,null,"in Euro",null,{"$f":"'sonstige direkt zurechenbare Ko'!F42","v":0},null,945]
[]
[]
["Zwischensumme",null,null,null,null,"in Euro",null,{"$f":"H4+H7+H6+H9+H11+H13+H17+H21+H15+H19","v":0}]
[]
[]
["Preissteigerungen während der Laufzeit inklusive\nTariferhöhungen (mit Ja bestätigen, wenn während der Laufzeit zu erwarten)",null,null,null,null,"in Euro",null,{"$f":"IF(F28=\"Ja\",H24*0.05,0)","v":0},null,960,"Bitte Eintrag mit \"Ja\" bestätigen und generell Preissteigerungen kalkulieren.  "]
[]
["Umlageanteil für Investitionen",null,null,null,null,"in Euro",null,0,null,956]
[]
["Selbstkosten ",null,null,null,null,"in Euro",null,{"$f":"H24+H27+H29","v":0}]
[]
["Gewinn in Prozent",null,null,null,null,null,null,{"$f":"H31*F33","v":0},null,"960         Gewinn-rücklage","                                                                                   Empfohlener Gewinn 3 % - 5 %                                                  Gewinne über 10 % müssen begründet werden"]
["Nettoüberschuss vorweg verfügbar\n(AA 961 Restmittelkostenstelle)",null,null,0.2,null,{"$f":"H33*D34","v":0}]
["Gewinn in Euro (alternativ)",null,null,null,null,"in Euro",null,null,null,"955        Nettoüber-schuss vorweg verfügbar"]
["Nettoüberschuss vorweg verfügbar\n(AA 961 Restmittelkostenstelle)",null,null,0.2,null,{"$f":"H35*D36","v":0}]
["Nettosumme vor Overhead",null,null,null,null,null,null,{"$f":"H31+H33+H35","v":0}]
[]
["Overhead  ",null,null,null,null,{"$f":"'Daten zum Auftrag'!B47*100","v":20},"im Hundert",{"$f":"IF(H37<0,H37*0,H37/(100-F39)*F39)","v":0},null,999]
[]
["Gesamt-Nettosumme",null,null,null,null,null,null,{"$f":"H39+H37","v":0}]
[{"$f":"'vereinfachte Gesamtkalkulat '!A72","v":"Partner Inland (mit USt) 19% "},null,null,null,null,"in Euro",null,{"$f":"H41*'vereinfachte Gesamtkalkulat '!C72","v":0}]
[]
[]
["Brutto-Angebotspreis des Auftrags",null,null,null,null,"in Euro",null,{"$f":"H42+H41","v":0}]
[]
[]
[]
["Auf Dienstpflicht wird bestätigt:"]
["Mir ist bekannt, dass nach dem EU-Gemeinschaftsrahmen für staatliche Beihilfen für Forschung, Entwicklung und Innovation"]
["(Beihilferahmen) zur Vermeidung von  Wettbewerbsverzerrungen eine Trennung von wirtschaftlichen und nichtwirtschaftlichen"]
["Tätigkeiten erforderlich ist und insoweit eine Quersubventionierung von wirtschaftlicher Tätigkeit aus staatlichen"]
["Haushaltsmitteln unzulässig ist."]
["Mir ist bekannt, dass nach bayerischer Haushaltsdordnung, die Universität Bayreuth nicht in Vorleistung gehen soll. "]
["Daher sollen Zahlungen weitestgehends vor Beginn der Tätigkeit erfolgen. Nur in begründeten Einzelfällen ist ggfs. eine "]
["andere Regelung möglich."]
["Das obige Projekt / die obige Kalkulation trägt dem Rechnung und wurde deshalb im Zuge der Angebotserstellung"]
["nach einer Vollkostenkalkulation bzw. nach marktüblichen Preisen kalkuliert."]
["Ferner wird sichergestellt, dass alle Ausgaben für das Projekt nachweisbar / spezifizierbar sind. Entsprechende "]
["Aufzeichnungen werden geführt und für eine evtl. Prüfung durch die EU nach den einschlägigen Aufbewahrungs-"]
["bestimmungen aufbewahrt."]
[]
[]
[null,"__________________________________",null,null,null,"_______________________________________"]
[null,"Datum, Unterschrift des Projektleiters",null,null,null,"Datum, Unterschrift des Lehrstuhlinhabers "]
[null,null,null,null,null,"(falls nicht gleichzeitig Projektleiter)"]
[]
[]
[]
[]
[]
[]
[]
[]
[]
[]
[]
[]
[]
[]
[null,null,null,null,null," "]

{"sheet":"Tabelle3","index":13,"n_rows":0,"n_cols":0,"rows_kept":0,"cut":false,"hidden":true,"merged":[]}